lending/lending_fUSD_20260119
["ID","MTS","AMOUNT","RATE_DAILY","PERIOD"]
[402671152,1768782643666,-225.81830676,0.0001799,2]
[402671155,1768782643688,-225.81830676,0.0001799,2]
[402671156,1768782643699,-471.83883324,0.00017997,2]
[402671158,1768782643717,-150.0,0.00017999,2]
[402671161,1768782643728,-150.0,0.00017999,2]
[402671162,1768782643740,-150.0,0.00017999,2]
[402671165,1768782643751,-150.0,0.00017999,2]
[402671166,1768782643761,-150.0,0.00017999,2]
[402671168,1768782643771,-150.0,0.00017999,2]
[402671170,1768782643784,-173.87388004,0.00017999,2]
[402671172,1768782643794,-221.41870559,0.00017999,2]
[402671174,1768782643807,-190.05473829,0.00017999,2]
[402671176,1768782643819,-382.78432403,0.00017999,2]
[402671178,1768782643831,-150.0,0.00018,2]
[402671180,1768782643842,-150.0,0.00018,2]
[402671182,1768782643852,-150.0,0.00018,2]
[402671184,1768782643863,-171.96838968,0.00018,2]
[402671186,1768782643873,-150.0,0.00018,2]
[402671188,1768782643883,-150.0,0.00018,2]
[402671190,1768782643892,-150.0,0.00018,2]
[402671192,1768782643902,-150.0,0.00018,2]
[402671194,1768782643912,-150.0,0.00018,2]
[402671196,1768782643930,-1156404.21140531,0.00018,2]
[402671198,1768782643939,-150.0,0.00018,2]
[402671200,1768782643949,-3940.92727994,0.00018,2]
[402671202,1768782643958,-150.0,0.00018,2]
[402671204,1768782643969,-17241.92081747,0.00018,2]
[402671206,1768782643978,-151.2041,0.00018,2]
[402671208,1768782643988,-150.0,0.00018,2]
[402671210,1768782643997,-4630.44614926,0.00018,2]
[402671212,1768782644007,-1000.0,0.00018,2]
[402671214,1768782644017,-1000.0,0.00018,2]
[402671216,1768782644027,-1000.0,0.00018,2]
[402671218,1768782644036,-1000.0,0.00018,2]
[402671219,1768782644046,-1000.0,0.00018,2]
[402671221,1768782644055,-1000.0,0.00018,2]
[402671223,1768782644065,-1000.0,0.00018,2]
[402671225,1768782644074,-1000.0,0.00018,2]
[402671227,1768782644083,-1000.0,0.00018,2]
[402671229,1768782644093,-1000.0,0.00018,2]
[402671231,1768782644102,-1000.0,0.00018,2]
[402671233,1768782644111,-1000.0,0.00018,2]
[402671235,1768782644121,-1000.0,0.00018,2]
[402671237,1768782644130,-1000.0,0.00018,2]
[402671239,1768782644139,-1000.0,0.00018,2]
[402671241,1768782644148,-1000.0,0.00018,2]
[402671243,1768782644157,-1000.0,0.00018,2]
[402671245,1768782644167,-1000.0,0.00018,2]
[402671247,1768782644180,-1000.0,0.00018,2]
[402671249,1768782644189,-1000.0,0.00018,2]
[402671251,1768782644199,-1000.0,0.00018,2]
[402671253,1768782644208,-1000.0,0.00018,2]
[402671255,1768782644217,-1000.0,0.00018,2]
[402671257,1768782644228,-1000.0,0.00018,2]
[402671259,1768782644236,-1000.0,0.00018,2]
[402671261,1768782644245,-1000.0,0.00018,2]
[402671263,1768782644254,-1000.0,0.00018,2]
[402671265,1768782644263,-1000.0,0.00018,2]
[402671266,1768782644272,-961.02146272,0.00018,2]
[402671268,1768782644281,-2000.0,0.00018,2]
[402671270,1768782644290,-537.65,0.00018,2]
[402671272,1768782644299,-277432.50452531,0.00018,2]
[402671307,1768782644692,-1.7e-07,0.00018,2]
[402671308,1768782644731,-338474.87398383,0.00018,2]
[402671309,1768782644743,-589.53151742,0.00018,2]
[402671310,1768782644754,-474.25635557,0.00018,2]
[402671311,1768782645263,-0.89586511,0.00018,2]
[402671312,1768782645276,-32000.0,0.00018,2]
[402671313,1768782645318,-77.37411556,0.00018,2]
[402671314,1768782645355,-276.00947847,0.00018,2]
[402671315,1768782645366,-746.92492681,0.00018,2]
[402671396,1768782646866,-1726.15897997,0.00017737,2]
[402671397,1768782646878,-1746.84102003,0.00017737,2]
[402671398,1768782646888,-418.58237797,0.00018,2]
[402671399,1768782646899,-5797.10009,0.00018,2]
[402671400,1768782646910,-9273.74616273,0.00018,2]
[402671401,1768782646930,-16664.4,0.00018,2]
[402671402,1768782646941,-16981.27772621,0.00018,2]
[402671403,1768782646957,-3200.0,0.00018,2]
[402671404,1768782647004,-7039.51305561,0.00018,2]
[402671405,1768782647016,-598.1162004,0.00018,2]
[402671406,1768782647027,-992.01127702,0.00018,2]
[402671407,1768782647039,-337.50568463,0.00018,2]
[402671408,1768782647058,-1765.70732562,0.00018,2]
[402671409,1768782653343,1000.0,0.0001527,2]
[402671410,1768782671693,1962.77608924,0.0001527,2]
[402671411,1768782671718,537.22391076,0.0001527,2]
[402671412,1768782738161,1992.6875,0.0001527,2]
[402671413,1768782778267,7470.09858924,0.0001527,2]
[402671414,1768782778292,7266.05311076,0.0001527,2]
[402671415,1768782793540,2733.95688924,0.0001527,2]
[402671416,1768782793568,10000.01,0.0001527,2]
[402671417,1768782793595,10000.01,0.0001527,2]
[402671418,1768782793622,10000.01,0.0001527,2]
[402671419,1768782793651,10000.01,0.0001527,2]
[402671420,1768782793681,10000.01,0.0001527,2]
[402671421,1768782793711,10000.01,0.0001527,2]
[402671422,1768782793738,10000.01,0.0001527,2]
[402671423,1768782793769,10000.01,0.0001527,2]
[402671424,1768782793798,10000.01,0.0001527,2]
[402671425,1768782793828,10000.01,0.0001527,2]
[402671426,1768782793857,10000.01,0.0001527,2]
[402671427,1768782793887,10000.01,0.0001527,2]
[402671428,1768782793917,10000.01,0.0001527,2]
[402671429,1768782793947,10000.01,0.0001527,2]
[402671430,1768782793975,694836.14157172,0.0001527,2]
[402671431,1768782794010,162429.76153904,0.0001527,2]
[402671432,1768782794155,-500.0,0.00015369,2]
[402671433,1768782794177,-303.31363165,0.00015369,2]
[402671434,1768782808327,1000.0,0.0001527,2]
[402671435,1768782832813,1506.2,0.0001527,2]
[402671436,1768782855823,-134.2467922,0.00015369,2]
[402671437,1768782855848,-192.65453673,0.00015369,2]
[402671438,1768782875866,6710.3703,0.0001527,2]
[402671439,1768782899959,500.0,0.00015268,2]
[402671440,1768782921303,283.4397,0.0001527,2]
[402671441,1768782921330,10000.01,0.0001527,2]
[402671442,1768782921356,10000.01,0.0001527,2]
[402671443,1768782921383,10000.01,0.0001527,2]
[402671444,1768782921410,10000.01,0.0001527,2]
[402671445,1768782921437,10000.01,0.0001527,2]
[402671446,1768782921462,10000.01,0.0001527,2]
[402671447,1768782921487,10000.01,0.0001527,2]
[402671448,1768782921513,10000.01,0.0001527,2]
[402671449,1768782921539,10000.01,0.0001527,2]
[402671450,1768782921564,10000.01,0.0001527,2]
[402671451,1768782921589,10000.01,0.0001527,2]
[402671452,1768782921615,10000.01,0.0001527,2]
[402671453,1768782921647,10000.01,0.0001527,2]
[402671454,1768782921673,10000.01,0.0001527,2]
[402671455,1768782921704,341199.5673,0.0001527,2]
[402671456,1768782939013,-307.34546327,0.00015369,2]
[402671457,1768782939044,-96.11003593,0.00015369,2]
[402671458,1768782939128,-403.88996407,0.00015369,2]
[402671459,1768782939166,-304.40215212,0.00015369,2]
[402671460,1768782983340,717.61,0.00025178,120]
[402671461,1768783049691,152.622731,0.00015291,2]
[402671462,1768783234435,194.66370652,0.00015268,2]
[402671463,1768783270832,1001.885478,0.00015291,2]
[402671464,1768783746093,-1200.0,0.00015359,2]
[402671465,1768783746115,-1310.06011249,0.00015363,2]
[402671466,1768783746137,-250.0,0.00015363,2]
[402671467,1768783746159,-245.21,0.00015367,2]
[402671468,1768783746185,-278.0,0.00015368,2]
[402671469,1768783746209,-300.0,0.00015368,2]
[402671470,1768783746233,-300.0,0.00015368,2]
[402671471,1768783746254,-216.86265924,0.00015369,2]
[402671472,1768783746275,-502.81706952,0.00015369,2]
[402671473,1768783746297,-500.0,0.00015369,2]
[402671474,1768783746321,-291.20820075,0.00015369,2]
[402671499,1768783831883,-1200.0,0.00015368,2]
[402671502,1768783831894,-300.0,0.00015368,2]
[402671505,1768783831904,-250.0,0.00015369,2]
[402671508,1768783831914,-208.79179925,0.00015369,2]
[402671511,1768783831923,-500.0,0.00015369,2]
[402671513,1768783831932,-500.0,0.00015369,2]
[402671516,1768783831941,-500.0,0.00015369,2]
[402671519,1768783831951,-500.0,0.00015369,2]
[402671523,1768783831961,-239.00959106,0.00015369,2]
[402671524,1768783831971,-500.0,0.00015369,2]
[402671527,1768783831980,-500.0,0.00015369,2]
[402671529,1768783831990,-500.0,0.00015369,2]
[402671531,1768783832001,-500.0,0.00015369,2]
[402671533,1768783832010,-278.0,0.00015369,2]
[402671535,1768783832020,-500.0,0.00015559,2]
[402671537,1768783832030,-471.83883324,0.00015559,2]
[402671539,1768783832039,-500.0,0.00015973,2]
[402671541,1768783832049,-500.0,0.00015973,2]
[402671543,1768783832059,-500.0,0.00015973,2]
[402671545,1768783832069,-500.0,0.00015973,2]
[402671547,1768783832078,-516.06560751,0.00015973,2]
[402671549,1768783832088,-500.0,0.00015973,2]
[402671551,1768783832099,-500.0,0.00015973,2]
[402671553,1768783832111,-225.32355576,0.00015973,2]
[402671555,1768783832121,-500.0,0.00015973,2]
[402671557,1768783832130,-500.0,0.00015973,2]
[402671559,1768783832139,-500.0,0.00015973,2]
[402671561,1768783832149,-500.0,0.00015973,2]
[402671563,1768783832159,-500.0,0.00015973,2]
[402671566,1768783832168,-200.0,0.00015995,2]
[402671568,1768783832177,-200.0,0.00015995,2]
[402671570,1768783832186,-500.0,0.00015995,2]
[402671572,1768783832195,-200.0,0.00015995,2]
[402671574,1768783832205,-151.0,0.00015995,2]
[402671576,1768783832214,-151.0,0.00015995,2]
[402671578,1768783832223,-151.0,0.00015995,2]
[402671580,1768783832235,-151.0,0.00015995,2]
[402671582,1768783832244,-151.0,0.00015995,2]
[402671585,1768783832254,-151.0,0.00015995,2]
[402671588,1768783832263,-500.0,0.00015995,2]
[402671591,1768783832272,-151.0,0.00015995,2]
[402671594,1768783832282,-500.0,0.00015995,2]
[402671597,1768783832291,-151.0,0.00015995,2]
[402671599,1768783832300,-500.0,0.00015995,2]
[402671601,1768783832310,-151.0,0.00015995,2]
[402671603,1768783832319,-500.0,0.00015995,2]
[402671605,1768783832329,-151.0,0.00015995,2]
[402671606,1768783832338,-500.0,0.00015995,2]
[402671608,1768783832348,-500.0,0.00015995,2]
[402671610,1768783832359,-151.0,0.00015995,2]
[402671612,1768783832368,-500.0,0.00015995,2]
[402671614,1768783832377,-500.0,0.00015995,2]
[402671616,1768783832387,-151.0,0.00015995,2]
[402671618,1768783832396,-500.0,0.00015995,2]
[402671620,1768783832406,-500.0,0.00015995,2]
[402671622,1768783832416,-151.0,0.00015995,2]
[402671625,1768783832425,-500.0,0.00015995,2]
[402671627,1768783832435,-500.0,0.00015995,2]
[402671628,1768783832444,-151.0,0.00015995,2]
[402671631,1768783832454,-500.0,0.00015995,2]
[402671632,1768783832463,-500.0,0.00015995,2]
[402671634,1768783832472,-151.0,0.00015995,2]
[402671636,1768783832481,-500.0,0.00015995,2]
[402671638,1768783832490,-500.0,0.00015995,2]
[402671640,1768783832499,-151.0,0.00015995,2]
[402671642,1768783832508,-500.0,0.00015995,2]
[402671644,1768783832517,-500.0,0.00015995,2]
[402671646,1768783832526,-151.0,0.00015995,2]
[402671648,1768783832535,-500.0,0.00015995,2]
[402671650,1768783832544,-151.0,0.00015995,2]
[402671652,1768783832553,-500.0,0.00015995,2]
[402671654,1768783832562,-151.0,0.00015995,2]
[402671656,1768783832571,-500.0,0.00015995,2]
[402671658,1768783832581,-500.0,0.00015995,2]
[402671660,1768783832590,-151.0,0.00015995,2]
[402671662,1768783832599,-151.0,0.00015995,2]
[402671664,1768783832608,-151.0,0.00015995,2]
[402671666,1768783832617,-151.0,0.00015995,2]
[402671668,1768783832625,-151.0,0.00015995,2]
[402671670,1768783832634,-151.0,0.00015995,2]
[402671672,1768783832644,-151.0,0.00015995,2]
[402671674,1768783832653,-151.0,0.00015995,2]
[402671676,1768783832663,-151.0,0.00015995,2]
[402671678,1768783832672,-151.0,0.00015995,2]
[402671680,1768783832681,-151.0,0.00015995,2]
[402671682,1768783832691,-151.0,0.00015995,2]
[402671684,1768783832700,-927.12,0.00015995,2]
[402671686,1768783832710,-259.0956586,0.00016004,2]
[402671688,1768783832719,-26085.27872098,0.00016005,2]
[402671690,1768783832728,-1834.01,0.00016054,2]
[402671692,1768783832737,-151.0,0.00016103,2]
[402671694,1768783832747,-150.0,0.000162,2]
[402671696,1768783832756,-150.0,0.000162,2]
[402671697,1768783832764,-150.0,0.000162,2]
[402671698,1768783832774,-150.0,0.000162,2]
[402671699,1768783832783,-150.0,0.000162,2]
[402671700,1768783832792,-150.0,0.000162,2]
[402671701,1768783832801,-150.0,0.000162,2]
[402671702,1768783832810,-150.0,0.000162,2]
[402671703,1768783832819,-150.0,0.000162,2]
[402671704,1768783832827,-150.0,0.000162,2]
[402671705,1768783832836,-150.0,0.000162,2]
[402671706,1768783832845,-2242.09,0.00016233,2]
[402671707,1768783832855,-324.63233801,0.00016245,2]
[402671708,1768783832864,-927.12,0.00016269,2]
[402671709,1768783832873,-151.0,0.00016275,2]
[402671710,1768783832881,-151.0,0.00016275,2]
[402671711,1768783832890,-151.0,0.00016284,2]
[402671712,1768783832899,-151.0,0.00016284,2]
[402671713,1768783832908,-151.0,0.00016285,2]
[402671714,1768783832917,-151.0,0.00016285,2]
[402671715,1768783832926,-150.0,0.00016312,2]
[402671716,1768783832935,-150.0,0.0001635,2]
[402671717,1768783832943,-348.0,0.00016356,2]
[402671718,1768783832952,-381.184,0.00016356,2]
[402671719,1768783832961,-500.0,0.00016356,2]
[402671720,1768783832970,-500.0,0.00016356,2]
[402671721,1768783832978,-150.0,0.000164,2]
[402671722,1768783832987,-150.0,0.000164,2]
[402671723,1768783832996,-831.0,0.000164,2]
[402671724,1768783833005,-1500.0,0.00016416,2]
[402671726,1768783833015,-150.0,0.00016425,2]
[402671728,1768783833025,-150.0,0.00016425,2]
[402671730,1768783833036,-3240.0,0.00016468,2]
[402671732,1768783833046,-150.0,0.0001649,2]
[402671734,1768783833056,-150.0,0.000165,2]
[402671736,1768783833065,-474.36,0.00016511,2]
[402671738,1768783833075,-1000.0,0.00016521,2]
[402671740,1768783833084,-1000.0,0.00016521,2]
[402671742,1768783833094,-1000.0,0.00016521,2]
[402671744,1768783833104,-581.57790083,0.00016521,2]
[402671746,1768783833114,-1008.88161268,0.00016521,2]
[402671748,1768783833123,-150.0,0.00016537,2]
[402671749,1768783833133,-927.12,0.00016543,2]
[402671751,1768783833142,-150.0,0.0001656,2]
[402671753,1768783833152,-150.0,0.000166,2]
[402671755,1768783833162,-150.0,0.000166,2]
[402671757,1768783833171,-212.41,0.00016626,2]
[402671759,1768783833181,-150.0,0.0001665,2]
[402671761,1768783833190,-150.0,0.0001665,2]
[402671763,1768783833200,-150.0,0.0001665,2]
[402671765,1768783833209,-150.0,0.0001665,2]
[402671767,1768783833218,-150.0,0.00016762,2]
[402671769,1768783833229,-151.0,0.00016779,2]
[402671771,1768783833241,-174.61919141,0.00016779,2]
[402671773,1768783833251,-1999.0,0.00016779,2]
[402671775,1768783833260,-322.6107,0.00016779,2]
[402671777,1768783833269,-574.12855637,0.00016779,2]
[402671779,1768783833278,-965.52571517,0.00016779,2]
[402671781,1768783833287,-620.0,0.00016779,2]
[402671783,1768783833297,-7136.25084924,0.00016781,2]
[402671785,1768783833306,-717.61,0.00016785,2]
[402671787,1768783833315,-150.0,0.000168,2]
[402671789,1768783833324,-150.0,0.000168,2]
[402671791,1768783833334,-150.0,0.000168,2]
[402671793,1768783833343,-150.0,0.000168,2]
[402671795,1768783833352,-420.0,0.00016813,2]
[402671797,1768783833362,-927.12,0.00016817,2]
[402671799,1768783833372,-150.0,0.00016875,2]
[402671801,1768783833381,-150.0,0.00016875,2]
[402671803,1768783833391,-250.0,0.00016877,2]
[402671805,1768783833402,-300.0,0.00016895,2]
[402671807,1768783833413,-600.0,0.00016895,2]
[402671808,1768783833424,-341.0058,0.00016895,2]
[402671809,1768783833434,-1680.0,0.00016898,2]
[402671810,1768783833443,-500.0,0.000169,2]
[402671811,1768783833453,-300.0,0.00016905,2]
[402671812,1768783833463,-600.0,0.00016905,2]
[402671813,1768783833472,-2500.0,0.00016905,2]
[402671814,1768783833481,-250.0,0.00016905,2]
[402671815,1768783833490,-326.90132893,0.00016906,2]
[402671816,1768783833499,-150.0,0.0001692,2]
[402671817,1768783833508,-870.85,0.00016938,2]
[402671818,1768783833518,-150.0,0.0001695,2]
[402671819,1768783833527,-150.0,0.00016987,2]
[402671820,1768783833536,-150.0,0.00017,2]
[402671821,1768783833545,-150.0,0.00017,2]
[402671822,1768783833555,-250.0,0.00017,2]
[402671823,1768783833565,-2725.7057171,0.00017009,2]
[402671824,1768783833575,-500.0,0.00017068,2]
[402671825,1768783833584,-989.22403192,0.00017068,2]
[402671826,1768783833593,-1213.98699089,0.00017068,2]
[402671827,1768783833603,-927.12,0.00017091,2]
[402671828,1768783833614,-150.0,0.000171,2]
[402671829,1768783833624,-150.0,0.000171,2]
[402671830,1768783833634,-150.0,0.000171,2]
[402671831,1768783833644,-150.0,0.000171,2]
[402671832,1768783833654,-150.0,0.000171,2]
[402671834,1768783833663,-800.0,0.000171,6]
[402671835,1768783833673,-1487.06520405,0.00017128,2]
[402671836,1768783833683,-3924.38860115,0.00017128,2]
[402671837,1768783833692,-6923.08666507,0.00017128,2]
[402671838,1768783833702,-10356.52360833,0.00017128,2]
[402671839,1768783833711,-14012.7372,0.00017128,2]
[402671840,1768783833720,-221.0,0.00017129,2]
[402671841,1768783833730,-2747.70189235,0.00017155,2]
[402671842,1768783833739,-221.0,0.0001717,2]
[402671843,1768783833749,-150.0,0.000172,2]
[402671844,1768783833758,-150.0,0.000172,2]
[402671845,1768783833767,-1700.0,0.000172,6]
[402671846,1768783833777,-150.0,0.00017212,2]
[402671847,1768783833786,-150.0,0.0001725,2]
[402671848,1768783833795,-1000.0,0.0001726,2]
[402671849,1768783833805,-2637.46101401,0.00017263,2]
[402671850,1768783833815,-150.0,0.0001728,2]
[402671851,1768783833825,-168.0,0.00017286,2]
[402671852,1768783833835,-2600.0,0.000173,6]
[402671853,1768783833854,-168.0,0.00017307,2]
[402671854,1768783833864,-150.0,0.00017325,2]
[402671855,1768783833874,-150.0,0.00017325,2]
[402671856,1768783833885,-2000.0,0.00017325,2]
[402671857,1768783833895,-2000.0,0.00017325,2]
[402671858,1768783833905,-2000.0,0.00017325,2]
[402671859,1768783833915,-2000.0,0.00017325,2]
[402671860,1768783833925,-1190.991,0.00017325,2]
[402671861,1768783833934,-151.0,0.00017327,2]
[402671862,1768783833944,-181.08010149,0.00017327,2]
[402671863,1768783833953,-595.37131296,0.00017327,2]
[402671864,1768783833963,-927.12,0.00017365,2]
[402671865,1768783833974,-245.2,0.00017367,7]
[402671866,1768783833984,-168.0,0.00017392,2]
[402671867,1768783833993,-150.0,0.000174,2]
[402671868,1768783834003,-150.0,0.000174,2]
[402671869,1768783834012,-150.0,0.000174,2]
[402671870,1768783834022,-150.0,0.000174,2]
[402671871,1768783834032,-3500.0,0.000174,6]
[402671872,1768783834042,-150.0,0.00017437,2]
[402671873,1768783834051,-2000.0,0.000175,2]
[402671874,1768783834061,-4400.0,0.000175,6]
[402671875,1768783834071,-168.0,0.00017516,2]
[402671876,1768783834080,-1000.0,0.00017534,2]
[402671877,1768783834090,-168.0,0.00017541,2]
[402671878,1768783834100,-150.0,0.0001755,2]
[402671879,1768783834110,-150.0,0.0001755,2]
[402671880,1768783834119,-150.0,0.0001755,2]
[402671881,1768783834129,-150.0,0.0001755,2]
[402671882,1768783834139,-168.0,0.00017569,2]
[402671883,1768783834148,-150.0,0.000176,2]
[402671884,1768783834158,-150.0,0.000176,2]
[402671885,1768783834167,-800.0,0.000176,6]
[402671886,1768783834177,-927.12,0.00017639,2]
[402671887,1768783834187,-150.0,0.0001764,2]
[402671888,1768783834196,-151.0,0.00017652,2]
[402671889,1768783834210,-221.0,0.00017656,2]
[402671890,1768783834219,-150.0,0.00017662,2]
[402671891,1768783834233,-161.0,0.0001768,2]
[402671892,1768783834243,-151.0,0.00017691,2]
[402671893,1768783834252,-500.0,0.00017699,2]
[402671894,1768783834261,-500.0,0.00017699,2]
[402671895,1768783834272,-644.0,0.00017699,2]
[402671896,1768783834281,-150.0,0.00017699,2]
[402671897,1768783834291,-500.0,0.00017699,2]
[402671898,1768783834301,-500.0,0.00017699,2]
[402671899,1768783834312,-500.0,0.00017699,2]
[402671900,1768783834321,-500.0,0.00017699,2]
[402671901,1768783834331,-500.0,0.00017699,2]
[402671902,1768783834340,-150.0,0.00017699,2]
[402671903,1768783834350,-250.0,0.00017699,2]
[402671904,1768783834361,-500.0,0.00017699,2]
[402671905,1768783834370,-500.0,0.00017699,2]
[402671906,1768783834379,-213.50419606,0.00017699,2]
[402671907,1768783834388,-166.36316298,0.00017699,2]
[402671908,1768783834398,-150.0,0.00017699,2]
[402671909,1768783834407,-221.0,0.000177,2]
[402671910,1768783834416,-150.0,0.000177,2]
[402671911,1768783834426,-8429.30299668,0.000177,2]
[402671912,1768783834436,-800.0,0.000177,6]
[402671913,1768783834445,-937.539,0.00017709,2]
[402671914,1768783834455,-227.843,0.00017709,2]
[402671915,1768783834464,-8429.30299665,0.00017722,2]
[402671916,1768783834473,-937.81,0.00017728,2]
[402671917,1768783834482,-151.0,0.0001773,2]
[402671918,1768783834492,-8429.30299665,0.00017744,2]
[402671919,1768783834502,-1101.0,0.00017748,2]
[402671920,1768783834511,-166.36316298,0.00017749,2]
[402671921,1768783834520,-500.0,0.00017754,2]
[402671922,1768783834531,-500.0,0.00017754,2]
[402671923,1768783834540,-644.0,0.00017754,2]
[402671924,1768783834550,-150.0,0.00017754,2]
[402671925,1768783834559,-500.0,0.00017754,2]
[402671926,1768783834569,-500.0,0.00017754,2]
[402671927,1768783834583,-500.0,0.00017754,2]
[402671928,1768783834593,-500.0,0.00017754,2]
[402671929,1768783834602,-500.0,0.00017754,2]
[402671930,1768783834612,-250.0,0.00017754,2]
[402671931,1768783834622,-500.0,0.00017754,2]
[402671932,1768783834632,-500.0,0.00017754,2]
[402671933,1768783834642,-150.0,0.00017754,2]
[402671934,1768783834651,-8429.30299665,0.00017767,2]
[402671935,1768783834662,-151.0,0.00017768,2]
[402671936,1768783834673,-168.0,0.00017769,2]
[402671937,1768783834682,-150.0,0.00017775,2]
[402671938,1768783834691,-150.0,0.00017775,2]
[402671939,1768783834701,-150.0,0.00017781,2]
[402671940,1768783834710,-870.85,0.00017785,2]
[402671941,1768783834720,-8429.30299665,0.00017789,2]
[402671942,1768783834730,-500.0,0.00017799,2]
[402671943,1768783834740,-500.0,0.00017799,2]
[402671944,1768783834750,-489.80162798,0.00017799,2]
[402671945,1768783834759,-545.75807735,0.00017799,2]
[402671946,1768783834769,-500.0,0.00017799,2]
[402671947,1768783834778,-616.37332487,0.00017799,2]
[402671948,1768783834787,-500.0,0.00017799,2]
[402671949,1768783834797,-500.0,0.00017799,2]
[402671950,1768783834806,-500.0,0.00017799,2]
[402671951,1768783834816,-500.0,0.00017799,2]
[402671952,1768783834825,-500.0,0.00017799,2]
[402671953,1768783834834,-500.0,0.00017799,2]
[402671954,1768783834845,-500.0,0.00017799,2]
[402671955,1768783834854,-500.0,0.00017799,2]
[402671956,1768783834865,-500.0,0.00017799,2]
[402671957,1768783834875,-500.0,0.00017799,2]
[402671958,1768783834884,-500.0,0.00017799,2]
[402671959,1768783834894,-500.0,0.00017799,2]
[402671960,1768783834904,-500.0,0.00017799,2]
[402671961,1768783834914,-615.99072426,0.00017799,2]
[402671962,1768783834925,-500.0,0.00017799,2]
[402671963,1768783834939,-393.2482217,0.00017799,2]
[402671964,1768783834949,-500.0,0.00017799,2]
[402671965,1768783835344,-500.0,0.00017799,2]
[402671966,1768783835355,-500.0,0.00017799,2]
[402671967,1768783835364,-500.0,0.00017799,2]
[402671968,1768783835377,-500.0,0.00017799,2]
[402671969,1768783835386,-500.0,0.00017799,2]
[402671970,1768783835395,-500.0,0.00017799,2]
[402671971,1768783835405,-500.0,0.00017799,2]
[402671972,1768783835415,-500.0,0.00017799,2]
[402671973,1768783835425,-500.0,0.00017799,2]
[402671974,1768783835434,-500.0,0.00017799,2]
[402671975,1768783835444,-500.0,0.00017799,2]
[402671976,1768783835454,-500.0,0.00017799,2]
[402671977,1768783835463,-500.0,0.00017799,2]
[402671978,1768783835472,-500.0,0.00017799,2]
[402671979,1768783835482,-500.0,0.00017799,2]
[402671980,1768783835491,-500.0,0.00017799,2]
[402671981,1768783835501,-500.0,0.00017799,2]
[402671982,1768783835511,-500.0,0.00017799,2]
[402671983,1768783835521,-500.0,0.00017799,2]
[402671984,1768783835532,-500.0,0.00017799,2]
[402671985,1768783835543,-500.0,0.00017799,2]
[402671986,1768783835553,-500.0,0.00017799,2]
[402671987,1768783835562,-500.0,0.00017799,2]
[402671988,1768783835574,-500.0,0.00017799,2]
[402671989,1768783835584,-500.0,0.00017799,2]
[402671990,1768783835593,-500.0,0.00017799,2]
[402671991,1768783835602,-500.0,0.00017799,2]
[402671992,1768783835613,-500.0,0.00017799,2]
[402671993,1768783835623,-500.0,0.00017799,2]
[402671994,1768783835632,-500.0,0.00017799,2]
[402671995,1768783835643,-500.0,0.00017799,2]